Cogmind - Beta 9.6 @@@ ROGUE MODE // 2020.08.27 @ 16:19:19 Player: IceBox Result: Self-destructed Performance ------------- Evolutions (1) 500 Regions Visited (2) 400 Robots Destroyed (34) 170 Value Destroyed (634) 634 Prototype IDs (1) 20 Alien Tech Used (0) 0 Bonus (0) 0 TOTAL SCORE: 1724 Bonus ------- None Cogmind --------- Core Integrity 225/400 Matter 300/300 Energy 31/100 System Corruption 1% Temperature Cool (153) Movement Core (650) Ox12 Location -9/Materials Parts ------- > --- POWER (1) -------- (None) > --- PROPULSION (3) --- Light Treads > --- UTILITY (3) ------ Large Storage Unit Large Storage Unit > --- WEAPON (2) ------- EM Pulse Cannon > --- INVENTORY (16) --- Ion Engine Light Ion Engine Compact Wheel Medium Storage Unit Medium Storage Unit Advanced Sensor Array Advanced Sensor Array Signal Interpreter Improved Targeting Computer Light Armor Plating EM Pulse Cannon EM Pulse Cannon Light Assault Rifle Improved Light Cannon Peak State ------------ > --- POWER ------------ Improved Ion Engine > --- PROPULSION ------- Light Treads Light Treads Wheel > --- UTILITY ---------- Cryofiber Web Large Storage Unit Large Storage Unit > --- WEAPON ----------- Improved EM Shotgun Improved EM Shotgun > --- INVENTORY -------- Ion Engine Light Ion Engine Compact Wheel Medium Storage Unit Medium Storage Unit Advanced Sensor Array Advanced Sensor Array Signal Interpreter Improved Targeting Computer Light Armor Plating Improved EM Shotgun EM Pulse Cannon EM Pulse Cannon EM Pulse Cannon Light Assault Rifle Improved Light Cannon [Rating: 19] Favorites ----------- Power Light Ion Engine Engine Light Ion Engine Propulsion Light Treads Treads Light Treads Leg Aluminum Leg Wheel Wheel Utility Large Storage Unit Device Cryofiber Web Storage Large Storage Unit Processor Improved Targeting Computer Weapon Assault Rifle Energy Gun Improved EM Shotgun Energy Cannon EM Pulse Cannon Ballistic Gun Assault Rifle Ballistic Cannon Improved Light Cannon Build | -11 -10 -9 ------- Run | Scr Mat Mat Slots Evolved 2 | . . 2 Power . | . . . Propulsion 1 | . . 1 Utility 1 | . . 1 Weapon . | . . . Parts Attached 22 | 2 4 16 Power 2 | . . 2 Engine 2 | . . 2 Core . | . . . Reactor . | . . . Propulsion 7 | 2 . 5 Treads 4 | 2 . 2 Leg . | . . . Wheel 3 | . . 3 Hover . | . . . Flight . | . . . Utility 4 | . 3 1 Device 1 | . . 1 Storage 2 | . 2 . Processor 1 | . 1 . Hackware . | . . . Protection . | . . . Artifact . | . . . Weapon 9 | . 1 8 Energy Gun 3 | . . 3 Energy Cannon 3 | . . 3 Ballistic Gun 1 | . 1 . Ballistic Cannon 2 | . . 2 Launcher . | . . . Special Weapon . | . . . Impact Weapon . | . . . Slashing Weapon . | . . . Piercing Weapon . | . . . Special Melee Weapon . | . . . Unidentified Prototypes 1 | . . 1 Parts Lost 10 | . . 10 Power 1 | . . 1 Propulsion 3 | . . 3 Utility 1 | . . 1 Weapon 5 | . . 5 Highest Loss Streak 7 | . . 7 Average Slot Usage (%) 98 | . 99 97 Engine 12 | . 14 10 Treads 28 | . 28 28 Wheel 2 | . . 4 Device 5 | . . 9 Storage 21 | . 21 22 Processor 2 | . 5 . Energy Gun 5 | . 6 4 Energy Cannon 4 | . . 7 Ballistic Gun 10 | . 21 2 Ballistic Cannon 4 | . . 7 Naked Turns . | . . . Heaviest Build 50 | 10 39 50 Greatest Support 60 | 40 40 60 Greatest Overweight (x) 4 | . . 4 Average Overweight (x) 1 | . . 1 Largest Inventory Capacity 16 | 6 16 16 Average Capacity 14 | 6 11 16 Most Carried 16 | 6 16 16 Average Carried 13 | 6 9 15 Final Capacity 16 | 6 16 16 Final Carried 16 | 6 16 14 Class Distribution -------------------- 100% | Mutant Dominant Class ---------------- Mutant | -10/Materials Mutant | -9/Materials Resources | -11 -10 -9 ----------- Run | Scr Mat Mat Matter Collected 667 | 220 142 305 Remotely . | . . . Salvage Created 1141 | . 286 855 Parts 68 | . 22 46 Haulers Intercepted 4 | . 2 2 Recyclers Shooed 1 | . . 1 Parts Field Recycled . | . . . Retrieved Matter . | . . . Parts Self-Destructed . | . . . Prevented . | . . . Kills | -11 -10 -9 ------- Run | Scr Mat Mat Combat Hostiles Destroyed 20 | . 6 14 Guns 14 | . 6 8 Cannons 4 | . . 4 AOE 1 | . . 1 Classes Destroyed 10 | . 4 6 Worker 1 | . 1 . Builder 1 | . . 1 Tunneler 1 | . . 1 Hauler 4 | . 2 2 Recycler 2 | . 1 1 Operator 1 | . . 1 Watcher 4 | . . 4 Swarmer 9 | . 6 3 Grunt 7 | . . 7 Sentry 4 | . . 4 Best Kill Streak 8 | . 4 8 Combat Bots Only 4 | . 3 4 Max Kills in Single Turn 2 | . 2 2 Gunslinging 1 | . . 1 Exploded 1 | . . 1 Melee . | . . . Uniques/NPCs Destroyed . | . . . Combat | -11 -10 -9 -------- Run | Scr Mat Mat Damage Taken 1264 | . 126 1138 Core 191 | . 16 175 Absorbed by Shields . | . . . Core Remaining (%) 96 | 100 93 . Volleys Fired 72 | . 17 55 Largest 2 | . 2 2 Hottest 126 | . 40 126 Shots Fired 134 | . 34 100 Gun 78 | . 34 44 Cannon 56 | . . 56 Launcher . | . . . Special . | . . . Kinetic 71 | . 34 37 Thermal . | . . . Explosive . | . . . Electromagnetic 63 | . . 63 Robot Hit Streak 28 | . 7 28 Robot Miss Streak 5 | . 1 5 Penetration Max . | . . . Secondary Targets 2 | . 1 1 Max Gunslinging Chain 1 | . 1 1 Shots Hit Robots 99 | . 22 77 Core Hits 43 | . 13 30 Critical Hits 2 | . . 2 Critical Kills 1 | . . 1 Critical Parts Destroyed 1 | . . 1 Melee Attacks . | . . . Impact . | . . . Slashing . | . . . Piercing . | . . . Sneak Attacks . | . . . Combat Hostiles . | . . . Follow-up Attacks . | . . . Damage Inflicted 1920 | . 273 1647 Guns 888 | . 273 615 Cannons 837 | . . 837 Explosions 188 | . . 188 Melee . | . . . Ramming 7 | . . 7 Kinetic 717 | . 273 444 Thermal 188 | . . 188 Explosive . | . . . Electromagnetic 1008 | . . 1008 Impact . | . . . Slashing . | . . . Piercing . | . . . Highest Corruption 1 | . 1 1 Average Corruption 1 | . 1 1 Corruption Purged . | . . . Effects 6 | . 2 4 Message Errors 3 | . 2 1 Energy Discharges 2 | . . 2 Data Loss (minor) 1 | . . 1 Overload Shots . | . . . Overflow Damage 25 | . . 25 Projectiles 25 | . . 25 Explosions . | . . . Melee . | . . . Knockbacks 10 | . . 10 Impact . | . . . Kinetic 10 | . . 10 Secondary . | . . . Self-Inflicted Damage 78 | . . 78 Shots 2 | . . 2 Rammed 1 | . . 1 Targets Rammed 1 | . . 1 Kicked . | . . . Crushed . | . . . Highest Temperature 240 | . . 240 Average Temperature 93 | . . 93 Received Heat Transfer 279 | . . 279 Effects 2 | . . 2 Interference 2 | . . 2 Siege Activations . | . . . Robots Corrupted 1 | . . 1 Combat Hostiles 1 | . . 1 Parts Fried 5 | . . 5 Impact Corruptions . | . . . Robots Melted . | . . . Combat Hostiles . | . . . Parts Melted . | . . . Heat Transferred 300 | . . 300 Parts Sabotaged . | . . . Parts Stolen . | . . . Parts Stripped . | . . . Power Chain Reactions 3 | . . 3 Missiles Intercepted . | . . . Alert | -11 -10 -9 ------- Run | Scr Mat Mat Peak Influence 223 | . 111 223 Average Influence 71 | . 43 93 Maximum Alert Level 1 | . . 1 Low Security (%) 97 | 100 100 94 Level 1 2 | . . 5 Level 2 . | . . . Level 3 . | . . . Level 4 . | . . . Level 5 . | . . . High Security . | . . . Max Security . | . . . Squads Dispatched 2 | . . 2 Investigation 1 | . . 1 Extermination . | . . . Reinforcement 1 | . . 1 Assault . | . . . Garrison . | . . . Intercept . | . . . Construction Impeded . | . . . Haulers Reinforced . | . . . Stealth | -11 -10 -9 --------- Run | Scr Mat Mat Distress Signals 3 | . . 3 Communications Jammed . | . . . Distress Signals . | . . . Times Spotted 38 | . 6 32 Peak Tracking Total 6 | . 3 6 Tactical Retreats 1 | . . 1 Traps | -11 -10 -9 ------- Run | Scr Mat Mat Traps Triggered 2 | . 1 1 Indirectly . | . . . Trap Hack Attempts . | . . . Triggered . | . . . Disarmed . | . . . Reprogrammed . | . . . Reused . | . . . Traps Extracted . | . . . Installed . | . . . Triggered . | . . . Machines | -11 -10 -9 ---------- Run | Scr Mat Mat Machines Disabled 1 | . . 1 Max in Single Turn 1 | . . 1 Machines Sabotaged . | . . . Garrisons Compromised . | . . . Overloaded Fab Kills . | . . . Fab Network Shutdowns . | . . . Hacking | -11 -10 -9 --------- Run | Scr Mat Mat Machines Accessed 6 | . 3 3 Terminals 5 | . 3 2 Fabricators . | . . . Repair Stations . | . . . Recycling Units . | . . . Scanalyzers 1 | . . 1 Garrison Access . | . . . Total Hacks 23 | . 13 10 Successful 10 | . 6 4 Failed 13 | . 7 6 Catastrophic 2 | . 2 . Database Lockouts . | . . . Manual 13 | . 5 8 Terminals 21 | . 13 8 Fabricators . | . . . Repair Stations . | . . . Recycling Units . | . . . Scanalyzers 2 | . . 2 Garrison Access . | . . . Terminal Hacks 7 | . 6 1 Part Schematic 2 | . 2 . Alert Level 1 | . 1 . Transport Status 1 | . 1 . Hauler Manifests 2 | . 1 1 Registered Components 1 | . 1 . Fabricator Hacks . | . . . Repair Station Hacks . | . . . Recycling Unit Hacks . | . . . Scanalyzer 2 | . . 2 Insert Component 1 | . . 1 Analyze 1 | . . 1 Garrison Access Hacks . | . . . Unauthorized Hacks 1 | . . 1 Terminals 1 | . . 1 Track 1 | . . 1 Fabricators . | . . . Repair Stations . | . . . Recycling Units . | . . . Scanalyzers . | . . . Garrison Access . | . . . Data Cores Recovered . | . . . Used . | . . . Hacking Detections 4 | . 2 2 Full Trace Events . | . . . Feedback Events . | . . . Feedback Blocked . | . . . Robot Schematics Acquired . | . . . Robots Built . | . . . Matter . | . . . Time . | . . . Total Robot Build Rating . | . . . Part Schematics Acquired 3 | . 2 1 Parts Built . | . . . Matter . | . . . Time . | . . . Total Part Build Rating . | . . . Parts Repaired . | . . . Time . | . . . Parts Recycled . | . . . Recycled Matter . | . . . Retrieved Matter . | . . . Retrieved Components . | . . . Parts Scanalyzed 1 | . . 1 Part Schematics Acquired 1 | . . 1 Parts Damaged 1 | . . 1 Bothacking | -11 -10 -9 ------------ Run | Scr Mat Mat Used RIF Installer . | . . . Robots Hacked . | . . . Non-combat . | . . . Combat . | . . . Robot Hacks Applied . | . . . Relay Couplers Released . | . . . Robots Rewired . | . . . Allies Hacked . | . . . Hacks Repelled . | . . . Allies | -11 -10 -9 -------- Run | Scr Mat Mat Total Allies . | . . . Largest Group . | . . . Highest-Rated Group . | . . . Highest-Rated Ally . | . . . Total Orders . | . . . Ally Attacks . | . . . Total Damage . | . . . Kills . | . . . Allies Corrupted . | . . . Allies Melted . | . . . Intel | -11 -10 -9 ------- Run | Scr Mat Mat Robot Analysis Total . | . . . Derelict Logs Recovered . | . . . Drone Launches . | . . . Drone Recoveries . | . . . Exploration | -11 -10 -9 ------------- Run | Scr Mat Mat Turns Passed 1619 | 8 697 914 Spaces Moved 840 | 4 387 449 Core . | . . . Treads 608 | 4 387 217 Legs . | . . . Wheels 232 | . . 232 Hover . | . . . Flight . | . . . Fastest Speed 110 | 160 160 110 Average Speed 148 | 160 160 137 Slowest Speed 160 | 160 160 160 Overloaded Moves . | . . . Propulsion Burnouts . | . . . Robots Hopped . | . . . Cave-ins Triggered . | . . . Exploration Rate (%) 32 | 2 49 46 Regions Visited 2 Branch Regions . Pre-discovered Areas . | . . . Known Exits Taken . | . . . Unknown Exits Taken 2 | 1 1 . Scrap Searched . | . . . Spaces Dug . | . . . Terrain Destroyed 17 | . . 17 Melee . | . . . Projectile 3 | . . 3 AOE 14 | . . 14 Actions | -11 -10 -9 --------- Run | Scr Mat Mat Total 1082 | 5 431 646 Wait 95 | . 5 90 Move 838 | 3 386 449 Hop . | . . . Pick Up 32 | . 15 17 Fast Attach 6 | . 1 5 Attach 5 | . . 5 Detach . | . . . Swap 12 | 2 3 7 Drop 21 | . 4 17 Fire 72 | . 17 55 Melee . | . . . Ram . | . . . Kick . | . . . Crush 1 | . . 1 Escape Stasis . | . . . Rewire . | . . . Trap . | . . . Miscellaneous . | . . . Route ------- -11/Scrapyard -10/Materials (discovered 3 exits: *Mat x2 / [*Min]) -9/Materials (discovered 1 exit: [*Min]) History --------- Turn | Location | Event 4 | -11/Scrapyard | Discovered new exit (range 2) 9 | -11/Scrapyard | Entered Materials 166 | -10/Materials | Discovered new exit (range 9) 331 | -10/Materials | Build established: Mutant 396 | -10/Materials | Discovered new exit (range 15) 703 | -10/Materials | Discovered new exit (range 3) 706 | -10/Materials | Entered another Materials area 706 | -9/Materials | Evolved 2 slots: Propulsion x1, Utility x1 1034 | -9/Materials | Discovered new exit (range 13) 1620 | -9/Materials | Self-destructed Last Messages --------------- 01612_ U-05 Engineer lays Concrete. 01612_ R-06 Scavenger collects Sml. Laser. 01612_ U-05 Engineer lays Concrete. 01613_ K-01 Serf collects debris. 01614_ U-05 Engineer builds a Wall. 01614_ U-05 Engineer lays Concrete. 01615_ Overheating: System interference. 01615_ Cryofiber Web temporarily disabled. 01615_ EM Pulse Cannon temporarily disabled. 01615_ K-01 Serf collects debris. 01615_ R-06 Scavenger collects Lgt. Ion Engine. 01616_ U-05 Engineer lays Concrete. 01617_ Lgt. Treads destroyed. 01617_ Cryofiber Web destroyed. 01617_ U-05 Engineer lays Concrete. 01618_ Imp. EM Shotgun destroyed. 01618_ U-05 Engineer lays Concrete. 01619_ K-01 Serf collects debris. 01619_ U-05 Engineer builds a Wall. 01619_ U-05 Engineer lays Concrete. Map ----- +----------------------------------------------------+ | ?????????????????????????????????????????????????? | | ?????????????????????????????????????????????????? | | ?????????????????????????????????????????????????? | | ?????????????????????????????????????????????????? | | ?????????????????????????????????????????????????? | | ?????????????????????????????????????????????????? | | ?????????????????????????????????????????????????? | | ?????????????????????????????????????????????????? | | ?????????????????????????????????????????????????? | | ???????????????????????? ???????????????????????? | | ??????????????????????T" ???????????????????????? | | ?????????????????????? T??????????????????????? | | ?????????????????????? #??????????????????????? | | ?????????????????????? #??????????????????????? | | ??????????????????????# #??????????????????????? | | ??????????????????????# #??????????????????????? | | ??????????????????????# #??????????????????????? | | ??#######?????????????# #??????????????????????? | | ### ########??????#k ######?????????????????? | | ## "" # """ #??????#k! ??????????????????? | | ## Y" # """ #??????#u%=* ???????????????????? | | ## "" # """ ########%%%! ????????????????????? | | ## # #!!!!!!; [%##?????????????????????? | | ## ] # #!! !!; uY##?????????????????????? | | #? ?? # # l=;#?????????????????????? | | #####+######+### ;u!@;#?????????????????????? | | !% !=##?????????????????????? | | !* u % ##?????????????????????? | | u [##?????????????????????? | | ################ #####??????????????????????? | | ???????????????#! !#####??????????????????????? | | ??########?????#! !#??????????????????????????? | | ??# #?????##!!!!##??????????????????????????? | | ### "" #??????######???????????????????????????? | | # ""S #???????????????????????????????????????? | | [ # ""! #???????????????????????????????????????? | | %=+ #???????????????????????????????????????? | | %=# #???????????????????????????????????????? | | =%########???????????????????????????????????????? | | ![ #?????????????????????????????????????????????? | | ! #?????????????????????????????????????????????? | | #?????????????????????????????????????????????? | | < #?????????????????????????????????????????????? | | #?????????????????????????????????????????????? | | #?????????????????????????????????????????????? | | #?????????????????????????????????????????????? | | ##?????????????????????????????????????????????? | | #??????????????????????????????????????????????? | | ###########????????????????????????????????????? | | # #????????????????????????????????????? | +----------------------------------------------------+ Best States ------------- Heat Dissipation 28 Energy Generation 12 Energy Capacity 265 Matter Stores 300 Matter Capacity 300 Sight Range 16 Terrain Scan Density 10 Base Temperature (-) 100 Evasion (%) 40 Targeting Accuracy 6 Recoil Reduction 3 Item Schematics ----------------- Med. Storage Unit | -10/Materials | Hacked Lrg. Storage Unit | -10/Materials | Hacked Imp. Sensor Array | -9/Materials | Scanalyzed Robot Schematics ------------------ None Fabricated ------------ Nothing Alien Tech Used ----------------- None Achievements -------------- None Challenges ------------ None Game ------ Seed LightningDamperReplicator Manual? 0 Play Time 00:18:49 Cumulative 54.3 hours Start 2020.08.27 @ 15:36:33 End 2020.08.27 @ 16:19:19 Sessions 5 Manual Loads 0 Difficulty Rogue Special Mode None Game No. 40 Rogue 39 Adventurer 1 Explorer 0 Win Type - Total 1 Types 1/0/0/0/0/0/0 Lore% 32 Gallery% 36 Achievement% 36 Wizard Run 0 Options --------- ASCII 0 Keyboard 1 Movement Vi Keybinds 0 Fullscreen 2 Font 18/Smallcaps Map View 76x50 Tactical HUD 1 Map Filters NONE Filters NONE Steam 1 RUN: 7238dbcb-35a6-446b-bbdb-563403477910